[Event "WYCC 2018 G16"]
[Site "Halkidiki"]
[Date "2018.10.21"]
[Round "2"]
[White "Meenal Gupta"]
[Black "Sanabria Taskila, Jenny Maria"]
[Result "1-0"]
[ECO "B64"]
[WhiteElo "2065"]
[BlackElo "1728"]
[Annotator "NA"]
[PlyCount "95"]
[EventDate "2018.10.20"]
[EventType "swiss"]
[EventCountry "GRE"]
[SourceTitle "playchess.com"]
[Source "ChessBase"]
[SourceQuality "1"]
[TimeControl "40/5400+30:1800+30"]

1. e4 {[%emt 0:00:00]} c5 {[%emt 0:00:00]} 2. Nf3 {[%emt 0:00:00]} d6 {[%emt 0:00:00]} 3. d4 {[%emt 0:00:00]} cxd4 {[%emt 0:00:00]} 4. Nxd4 {[%emt 0:00:00]} Nf6 {[%emt 0:00:03]} 5. Nc3 {[%emt 0:00:06]} Nc6 {[%emt 0:00:14]} 6. Bg5 {[%emt 0:01:16]} e6 {[%emt 0:00:39]} 7. Qd2 {[%emt 0:00:25]} Be7 {[%emt 0:02:03]} 8. O-O-O {[%emt 0:04:41]} O-O {[%emt 0:06:36]} 9. f4 {[%emt 0:06:33]} h6 {[%emt 0:19:41]} 10. Bxf6 {[%emt 0:15:13] LiveBook: 58 Games} Bxf6 {[%emt 0:00:45]} 11. Nb3 {[%emt 0:09:31]} Qb6 {[%emt 0:16:29]} 12. Na4 {[%emt 0:02:07]} Qb4 {[%emt 0:01:48]} 13. Qxb4 {[%emt 0:00:21]} Nxb4 $16 {[%emt 0:00:07]} 14. a3 {[%emt 0:00:49]} Nc6 {[%emt 0:13:48]} 15. Rxd6 {[%emt 0:01:14]} Be7 {[%emt 0:00:35]} 16. Rd1 {[%emt 0:00:19]} b6 {[%emt 0:00:53]} 17. e5 {[%emt 0:05:50]} g5 {[%emt 0:06:37]} 18. g3 {[%emt 0:02:26]} Bb7 {[%emt 0:00:31]} 19. Bg2 {[%emt 0:01:11]} Rfd8 {[%emt 0:00:58]} 20. Nc3 {[%emt 0:00:59]} Rac8 {[%emt 0:04:10]} 21. Rxd8+ {[%emt 0:06:41]} Rxd8 {[%emt 0:00:19]} 22. Rd1 {[%emt 0:00:58]} Kg7 {[%emt 0:02:37]} 23. Rxd8 {[%emt 0:02:53]} Nxd8 {[%emt 0:00:13]} 24. Bxb7 {[%emt 0:00:06]} Nxb7 {[%emt 0:00:04]} 25. Ne4 {[%emt 0:00:48]} Kg6 {[%emt 0:01:06]} 26. Kd2 {[%emt 0:00:03]} gxf4 {[%emt 0:01:56]} 27. gxf4 {[%emt 0:00:07]} Kf5 {[%emt 0:00:39]} 28. Ke3 {[%emt 0:00:07]} Kg4 {[%emt 0:04:28]} 29. Nf2+ {[%emt 0:00:09]} Kh4 {[%emt 0:00:17]} 30. Nd4 {[%emt 0:04:17]} Na5 {[%emt 0:04:45]} 31. Kd3 {[%emt 0:03:17]} a6 {[%emt 0:02:01]} 32. b4 {[%emt 0:02:06]} Nb7 {[%emt 0:00:25]} 33. Nc6 {[%emt 0:00:50]} Bf8 {[%emt 0:00:19]} 34. Ke4 {[%emt 0:00:42]} a5 {[%emt 0:01:38]} 35. c3 {[%emt 0:03:44]} Kh5 {[%emt 0:00:18]} 36. a4 {[%emt 0:04:39]} Kg6 {[%emt 0:01:42]} 37. Nd1 {[%emt 0:00:35]} f5+ {[%emt 0:01:50]} 38. Kd4 {[%emt 0:01:08]} Kf7 {[%emt 0:02:11]} 39. Ne3 {[%emt 0:00:24]} Ke8 {[%emt 0:00:11]} 40. Kc4 {[%emt 0:00:00]} Kd7 {[%emt 0:00:00]} 41. Kb5 {[%emt 0:01:27]} Nd8 {[%emt 0:01:47]} 42. Nxd8 {[%emt 0:03:10]} Kxd8 {[%emt 0:00:05]} 43. Nc4 {[%emt 0:00:09]} axb4 {[%emt 0:00:46]} 44. cxb4 {[%emt 0:00:09]} Kc7 {[%emt 0:00:13]} 45. Nxb6 {[%emt 0:00:18]} Bxb4 {[%emt 0:00:52]} 46. Na8+ {[%emt 0:00:10]} Kb7 {[%emt 0:00:08]} 47. Kxb4 {[%emt 0:00:05]} Kxa8 {[%emt 0:00:07]} 48. Kc5 {[%emt 0:00:03]} 1-0

[Event "WYCC 2018 G16"]
[Site "Halkidiki"]
[Date "2018.10.21"]
[Round "2"]
[White "Sankova, Stella"]
[Black "Kalyva, Kyriaki"]
[Result "0-1"]
[ECO "B23"]
[WhiteElo "2051"]
[BlackElo "1779"]
[Annotator "NA"]
[PlyCount "106"]
[EventDate "2018.10.20"]
[EventType "swiss"]
[EventCountry "GRE"]
[SourceTitle "playchess.com"]
[Source "ChessBase"]
[SourceQuality "1"]
[TimeControl "40/5400+30:1800+30"]

1. e4 {[%emt 0:00:00]} c5 {[%emt 0:00:00]} 2. Nc3 {[%emt 0:00:00]} a6 {[%emt 0:00:00]} 3. f4 {[%emt 0:00:00]} b5 {[%emt 0:00:00]} 4. Nf3 {[%emt 0:00:55]} Bb7 {[%emt 0:00:00]} 5. d3 {[%emt 0:00:28]} Nf6 {[%emt 0:02:26]} 6. g3 {[%emt 0:01:00]} e6 {[%emt 0:02:03]} 7. Bg2 {[%emt 0:00:46]} d5 {[%emt 0:02:42] B23: Closed Sicilian: Lines without g3} (7... d6 8. O-O Be7 9. a4 b4 10. Ne2 c4 11. b3 cxd3 12. cxd3 O-O 13. h3 Nc6 14. g4 Nd7 15. g5 {1-0 (51) Duda,J (2717)-Fedorchuk,S (2648) Katowice 2017}) 8. e5 {[%emt 0:01:00]} Nfd7 {[%emt 0:00:12]} 9. O-O {[%emt 0:00:38]} Nc6 {[%emt 0:01:40]} 10. f5 {[%emt 0:21:34]} Be7 {[%emt 0:17:31]} 11. fxe6 {[%emt 0:08:23]} fxe6 {[%emt 0:00:42]} 12. Bh3 {[%emt 0:00:39]} Nf8 {[%emt 0:05:10]} 13. Ne2 $146 {[%emt 0:13:07]} ({Predecessor:} 13. Ng5 Bxg5 14. Qh5+ g6 15. Qxg5 Qxg5 16. Bxg5 {1-0 (34) Ahlander,B (2426)-Kelires,A (2249) Rethymno 2014}) 13... Qd7 {[%emt 0:06:43]} 14. a4 {[%emt 0:03:11]} b4 {[%emt 0:10:16]} 15. c3 {[%emt 0:01:08]} O-O-O {[%emt 0:02:20]} 16. cxb4 {[%emt 0:03:44]} Nxb4 {[%emt 0:01:26]} 17. d4 {[%emt 0:01:46]} Nc6 {[%emt 0:12:01]} 18. Be3 {[%emt 0:02:06]} Rg8 {[%emt 0:01:44]} 19. dxc5 {[%emt 0:05:55]} g5 {[%emt 0:00:49]} 20. g4 {[%emt 0:01:56]} Ng6 {[%emt 0:02:02]} 21. Bd4 {[%emt 0:01:55]} Qc7 {[%emt 0:01:33]} 22. Rc1 {[%emt 0:03:15]} Rdf8 {[%emt 0:08:16]} 23. Qd3 {[%emt 0:04:35]} Nb4 {[%emt 0:06:13]} 24. Qd2 {[%emt 0:05:11]} Nc6 {[%emt 0:00:51]} 25. Qc3 {[%emt 0:02:32]} Nf4 {[%emt 0:02:36]} 26. Nxf4 {[%emt 0:00:18]} Rxf4 {[%emt 0:00:07]} 27. Be3 {[%emt 0:07:58]} Rc4 {[%emt 0:05:14]} 28. Qd3 {[%emt 0:01:35]} Nxe5 {[%emt 0:02:52]} 29. Nxe5 {[%emt 0:02:59]} Qxe5 {[%emt 0:00:06]} 30. b3 {[%emt 0:01:45]} Re4 {[%emt 0:01:20]} 31. c6 {[%emt 0:02:08]} Rxe3 {[%emt 0:01:32]} 32. cxb7+ {[%emt 0:00:04]} Kxb7 {[%emt 0:00:03]} 33. Qxh7 {[%emt 0:00:35]} Rg7 {[%emt 0:02:30]} 34. Qh8 {[%emt 0:00:16]} Bd6 {[%emt 0:00:24]} 35. Bg2 {[%emt 0:02:20]} Rc7 {[%emt 0:00:54]} 36. Rxc7+ {[%emt 0:00:52]} Bxc7 {[%emt 0:00:06]} 37. Qxe5 {[%emt 0:00:38]} Bxe5 {[%emt 0:00:21]} 38. Rf7+ {[%emt 0:00:46]} Kb6 {[%emt 0:00:38]} 39. Re7 {[%emt 0:00:20]} Bd4 {[%emt 0:00:28]} 40. Kf1 {[%emt 0:00:00]} Kc6 {[%emt 0:00:00]} 41. Re8 {[%emt 0:03:08]} Kd6 {[%emt 0:19:49]} 42. Ra8 {[%emt 0:02:02]} Rxb3 {[%emt 0:00:52]} 43. Rxa6+ {[%emt 0:00:04]} Ke5 {[%emt 0:00:07]} 44. Ke2 {[%emt 0:08:51]} Rb2+ {[%emt 0:01:29]} 45. Kf3 {[%emt 0:01:09]} Rf2+ $2 {[%emt 0:04:29]} (45... Bf2 $19 46. Bf1 Be1) 46. Kg3 {[%emt 0:00:05]} Be3 {[%emt 0:00:39]} 47. Ra8 {[%emt 0:02:43]} Kd4 {[%emt 0:01:53]} 48. a5 $2 {[%emt 0:01:37]} (48. h4) 48... e5 {[%emt 0:01:10]} 49. a6 $2 {[%emt 0:02:14]} (49. h4 gxh4+ 50. Kh3) 49... Rf6 $2 {[%emt 0:00:22]} (49... Rb2 $19 50. Kh3 Bf4) 50. Bf3 $2 {[%emt 0:01:20]} (50. h4 $11 {and White is okay.}) 50... e4 {[%emt 0:03:22]} 51. Be2 $2 {[%emt 0:00:17]} (51. Bd1 Rf2 52. h4) 51... Rf2 {[%emt 0:00:54]} 52. Bb5 {[%emt 0:01:45]} Rb2 {[%emt 0:00:19]} 53. Bc6 {[%emt 0:02:40]} Bf4+ {[%emt 0:00:10]} 0-1

[Event "WYCC 2018 G16"]
[Site "Halkidiki"]
[Date "2018.10.21"]
[Round "2"]
[White "Cramling Bellon, Anna"]
[Black "Plaza Reino, Mercedes"]
[Result "1-0"]
[ECO "D35"]
[WhiteElo "2025"]
[BlackElo "1727"]
[Annotator "NA"]
[PlyCount "59"]
[EventDate "2018.10.20"]
[EventType "swiss"]
[EventCountry "GRE"]
[SourceTitle "playchess.com"]
[Source "ChessBase"]
[SourceQuality "1"]
[TimeControl "40/5400+30:1800+30"]

1. d4 {[%emt 0:00:00]} d5 {[%emt 0:00:00]} 2. c4 {[%emt 0:00:00]} e6 {[%emt 0:00:00]} 3. Nc3 {[%emt 0:00:00]} Nf6 {[%emt 0:00:00]} 4. cxd5 {[%emt 0:00:00]} exd5 {[%emt 0:00:00]} 5. Bg5 {[%emt 0:00:00]} Be7 {[%emt 0:00:00]} 6. e3 {[%emt 0:00:00]} h6 {[%emt 0:00:49]} 7. Bh4 {[%emt 0:00:21]} c6 {[%emt 0:00:14]} 8. Bd3 {[%emt 0:00:19]} O-O {[%emt 0:00:28]} 9. Qc2 {[%emt 0:00:17]} Nbd7 {[%emt 0:00:30]} 10. Nf3 {[%emt 0:07:40]} Re8 {[%emt 0:00:51]} 11. Bg3 {[%emt 0:01:44]} Nf8 {[%emt 0:11:05]} 12. O-O {[%emt 0:11:06]} Bd6 {[%emt 0:14:43] LiveBook: 3 Games} 13. Bxd6 {[%emt 0:13:48]} Qxd6 $11 {[%emt 0:00:09]} 14. h3 {[%emt 0:00:09]} b6 {[%emt 0:05:07]} 15. Ne5 {[%emt 0:06:10]} Bb7 {[%emt 0:01:18]} 16. Ne2 {[%emt 0:05:53]} c5 {[%emt 0:06:00]} 17. Ng3 {[%emt 0:02:06]} a6 {[%emt 0:06:21]} 18. Nf5 {[%emt 0:03:58]} Qe6 {[%emt 0:04:57]} 19. Qe2 {[%emt 0:14:32]} N8d7 {[%emt 0:14:31]} 20. f4 {[%emt 0:02:10]} Kh8 {[%emt 0:13:12]} 21. Nd6 {[%emt 0:06:58]} Reb8 {[%emt 0:13:50]} 22. Bf5 {[%emt 0:04:32]} Qe7 {[%emt 0:00:22]} 23. Ndxf7+ {[%emt 0:01:42]} Kg8 {[%emt 0:00:24]} 24. Bxd7 {[%emt 0:00:58]} Nxd7 {[%emt 0:00:25]} 25. Nxh6+ {[%emt 0:00:27]} gxh6 {[%emt 0:04:00]} 26. Qg4+ {[%emt 0:00:06]} Qg7 {[%emt 0:01:19]} 27. Nxd7 {[%emt 0:07:58]} Rd8 {[%emt 0:00:33]} 28. Qxg7+ {[%emt 0:01:16]} Kxg7 {[%emt 0:00:06]} 29. Nxb6 {[%emt 0:00:18]} Rab8 {[%emt 0:00:26]} 30. dxc5 {[%emt 0:00:15]} 1-0

[Event "WYCC 2018 G16"]
[Site "Halkidiki"]
[Date "2018.10.21"]
[Round "2"]
[White "Miroshnik, Ekaterina"]
[Black "Makhija, Aashna"]
[Result "1/2-1/2"]
[ECO "D37"]
[WhiteElo "2023"]
[BlackElo "2197"]
[Annotator "NA"]
[PlyCount "77"]
[EventDate "2018.10.20"]
[EventType "swiss"]
[EventCountry "GRE"]
[SourceTitle "playchess.com"]
[Source "ChessBase"]
[SourceQuality "1"]
[TimeControl "40/5400+30:1800+30"]

1. d4 {[%emt 0:00:00]} Nf6 {[%emt 0:00:00]} 2. c4 {[%emt 0:00:00]} e6 {[%emt 0:00:00]} 3. Nc3 {[%emt 0:00:25]} d5 {[%emt 0:00:23]} 4. Nf3 {[%emt 0:00:07]} Be7 {[%emt 0:00:14]} 5. e3 {[%emt 0:00:06]} O-O {[%emt 0:01:22]} 6. Bd3 {[%emt 0:00:04]} b6 {[%emt 0:04:24]} 7. cxd5 {[%emt 0:00:07]} exd5 {[%emt 0:01:17]} 8. O-O {[%emt 0:00:06]} Bb7 {[%emt 0:02:55]} 9. b3 {[%emt 0:03:00]} Nbd7 {[%emt 0:03:38]} 10. Bb2 {[%emt 0:00:07]} c5 {[%emt 0:07:58]} 11. Ne2 {[%emt 0:00:39] LiveBook: 5 Games} Rc8 {[%emt 0:06:09]} 12. Rc1 {[%emt 0:00:06]} Ne4 {[%emt 0:06:13]} 13. Ne5 {[%emt 0:02:35]} Bd6 {[%emt 0:14:48]} 14. f3 {[%emt 0:14:17]} Nef6 $11 {[%emt 0:03:22]} 15. Ng3 {[%emt 0:01:56]} cxd4 {[%emt 0:07:34]} 16. exd4 {[%emt 0:03:32]} g6 {[%emt 0:06:45]} 17. Qd2 {[%emt 0:02:20]} Rxc1 {[%emt 0:11:40]} 18. Rxc1 {[%emt 0:02:29]} Nb8 {[%emt 0:02:44]} 19. Qh6 {[%emt 0:06:22]} Ba6 {[%emt 0:04:26]} 20. Bb1 {[%emt 0:03:12]} Qe7 {[%emt 0:02:12]} 21. Kh1 {[%emt 0:27:58]} Rc8 {[%emt 0:02:21]} 22. Rxc8+ {[%emt 0:00:56]} Bxc8 {[%emt 0:00:02]} 23. Qc1 {[%emt 0:03:27]} Ba6 {[%emt 0:04:39]} 24. Bd3 {[%emt 0:03:12]} Bxd3 {[%emt 0:01:38]} 25. Nxd3 {[%emt 0:00:05]} Qc7 {[%emt 0:01:32]} 26. Qxc7 {[%emt 0:02:12]} Bxc7 {[%emt 0:00:02]} 27. Nf1 {[%emt 0:03:10]} Nc6 {[%emt 0:01:52]} 28. Ne3 {[%emt 0:00:12]} Bd6 {[%emt 0:01:21]} 29. g4 {[%emt 0:01:27]} h6 {[%emt 0:01:14]} 30. Kg2 {[%emt 0:01:39]} Ne7 {[%emt 0:00:45]} 31. Nc2 {[%emt 0:03:59]} h5 {[%emt 0:00:40]} 32. h3 {[%emt 0:00:05]} hxg4 {[%emt 0:00:19]} 33. hxg4 {[%emt 0:00:05]} Ne8 {[%emt 0:00:48]} 34. Ba3 {[%emt 0:04:02]} Bxa3 {[%emt 0:00:11]} 35. Nxa3 {[%emt 0:00:01]} Nc6 {[%emt 0:01:06]} 36. Nc2 {[%emt 0:00:06]} Nc7 {[%emt 0:00:21]} 37. Nf4 {[%emt 0:00:29]} Kf8 {[%emt 0:00:43]} 38. Kf2 {[%emt 0:00:04]} Ke7 {[%emt 0:00:28]} 39. Ke3 {[%emt 0:00:31]} 1/2-1/2

[Event "WYCC 2018 G16"]
[Site "Halkidiki"]
[Date "2018.10.21"]
[Round "2"]
[White "Nestorovic, Katarina"]
[Black "Yurasova, Daria"]
[Result "1/2-1/2"]
[ECO "B12"]
[WhiteElo "2015"]
[BlackElo "2193"]
[Annotator "NA"]
[PlyCount "142"]
[EventDate "2018.10.20"]
[EventType "swiss"]
[EventCountry "GRE"]
[SourceTitle "playchess.com"]
[Source "ChessBase"]
[SourceQuality "1"]
[TimeControl "40/5400+30:1800+30"]

1. e4 {[%emt 0:00:00]} c6 {[%emt 0:00:00]} 2. d4 {[%emt 0:00:00]} d5 {[%emt 0:00:00]} 3. f3 {[%emt 0:01:13]} g6 {[%emt 0:00:00]} 4. Nc3 {[%emt 0:05:23]} Bg7 {[%emt 0:00:13]} 5. Be3 {[%emt 0:00:17]} Qb6 {[%emt 0:00:08]} 6. Qd2 {[%emt 0:05:52]} Qxb2 {[%emt 0:00:14]} 7. Rb1 {[%emt 0:01:29]} Qa3 {[%emt 0:00:06]} 8. exd5 {[%emt 0:02:51] B15: Caro-Kann: 3 Nc3: 3...g6 and 3...dxe4 4 Nxe4 Nf6 5 Nxf6+ exf6} Nf6 {[%emt 0:00:10]} 9. dxc6 {[%emt 0:08:03]} bxc6 {[%emt 0:00:09]} 10. Rb3 {[%emt 0:01:24]} (10. Bd3 O-O 11. Nge2 Nbd7 12. O-O Ba6 13. Rb3 Qa5 14. Ne4 Qxd2 15. Bxd2 Bxd3 16. cxd3 {½-½ (27) Najer,E (2706)-Rozum,I (2573) Sochi 2017}) 10... Qa5 {[%emt 0:02:45]} 11. Bc4 {[%emt 0:04:49]} O-O {[%emt 0:02:15]} 12. Nge2 {[%emt 0:01:42]} Nbd7 {[%emt 0:04:55]} 13. O-O {[%emt 0:03:23]} Nb6 {[%emt 0:06:11]} 14. Bd3 {[%emt 0:05:02]} Be6 {[%emt 0:05:53]} 15. Rb2 {[%emt 0:02:12]} Nc4 {[%emt 0:04:21]} 16. Bxc4 {[%emt 0:00:29]} Bxc4 {[%emt 0:00:06]} 17. Rfb1 $146 {[%emt 0:02:35]} Rfd8 {[%emt 0:04:13]} 18. Rb4 {[%emt 0:10:07]} Bxe2 {[%emt 0:08:16]} 19. Qxe2 {[%emt 0:01:12]} Ne8 {[%emt 0:02:35]} 20. R1b3 {[%emt 0:10:17]} Nd6 {[%emt 0:03:41]} 21. Bf2 {[%emt 0:02:48]} Qc7 {[%emt 0:04:02]} 22. Na4 {[%emt 0:04:38]} Nb5 {[%emt 0:19:18]} 23. c3 {[%emt 0:03:44]} Bf8 {[%emt 0:08:38]} 24. Rc4 {[%emt 0:12:19]} Nd6 {[%emt 0:03:38]} 25. Rc5 {[%emt 0:00:16]} Nb7 {[%emt 0:03:22]} 26. Bg3 {[%emt 0:01:39]} Qd7 {[%emt 0:00:25]} 27. Re5 {[%emt 0:00:46]} Nd6 {[%emt 0:03:21]} 28. Qa6 {[%emt 0:02:41]} Bg7 {[%emt 0:03:49]} 29. Nc5 {[%emt 0:01:02]} Qe8 {[%emt 0:00:08]} 30. Re1 {[%emt 0:00:21]} Nf5 {[%emt 0:00:36]} 31. Bf2 {[%emt 0:01:15]} Bh6 {[%emt 0:06:01]} 32. g4 {[%emt 0:01:55]} Nd6 {[%emt 0:00:32]} 33. Bh4 {[%emt 0:00:49]} g5 {[%emt 0:00:33]} 34. Bg3 {[%emt 0:00:07]} Bg7 {[%emt 0:00:16]} 35. Nb7 {[%emt 0:00:47]} Nxb7 {[%emt 0:01:22]} 36. Rxb7 {[%emt 0:00:12]} e6 {[%emt 0:01:15]} 37. Rc7 {[%emt 0:03:30]} Rdc8 {[%emt 0:00:30]} 38. Rxc8 {[%emt 0:00:44]} Qxc8 {[%emt 0:03:52]} 39. Qxc8+ {[%emt 0:00:30]} Rxc8 {[%emt 0:00:05]} 40. Bd6 {[%emt 0:00:00]} Bf8 {[%emt 0:00:00]} 41. Bxf8 {[%emt 0:01:24]} Kxf8 {[%emt 0:00:10]} 42. Re5 {[%emt 0:00:24]} h6 {[%emt 0:00:06]} 43. Ra5 {[%emt 0:00:15]} Rc7 {[%emt 0:00:07]} 44. Kf2 {[%emt 0:00:40]} Ke7 {[%emt 0:00:14]} 45. Ke3 {[%emt 0:00:38]} Rb7 {[%emt 0:01:53]} 46. a4 {[%emt 0:01:22]} Kd6 {[%emt 0:01:15]} 47. f4 {[%emt 0:08:03]} f6 {[%emt 0:05:55] [#]} 48. h4 $1 {[%emt 0:09:31]} gxh4 {[%emt 0:01:06]} 49. Rh5 {[%emt 0:00:10]} Rb3 {[%emt 0:00:11]} 50. Kd3 {[%emt 0:01:07]} Ra3 {[%emt 0:00:34]} (50... Rb1 $11) 51. Rxh4 {[%emt 0:01:04]} Rxa4 {[%emt 0:03:51]} 52. Rxh6 {[%emt 0:00:09]} Ke7 {[%emt 0:04:48]} 53. Rh7+ {[%emt 0:01:19]} Ke8 {[%emt 0:00:09]} 54. g5 {[%emt 0:01:22]} (54. Rc7 $142) 54... fxg5 {[%emt 0:01:23]} 55. fxg5 {[%emt 0:00:06]} Ra5 {[%emt 0:11:24]} 56. g6 {[%emt 0:00:39]} Rg5 {[%emt 0:01:09]} 57. Rxa7 {[%emt 0:00:25]} Rxg6 {[%emt 0:01:16]} 58. Rc7 {[%emt 0:00:08]} Kd8 {[%emt 0:00:16]} 59. Rxc6 {[%emt 0:00:13]} Kd7 {[%emt 0:00:02]} 60. Ra6 {[%emt 0:00:40]} Rg4 {[%emt 0:00:37]} 61. c4 {[%emt 0:01:17]} Rg3+ {[%emt 0:03:13]} 62. Ke4 {[%emt 0:00:10]} Rg4+ {[%emt 0:00:02]} 63. Ke5 {[%emt 0:00:33]} Rg5+ {[%emt 0:00:02]} 64. Kf4 {[%emt 0:00:26]} Rg1 {[%emt 0:00:47]} 65. c5 {[%emt 0:01:16]} Re1 {[%emt 0:02:08]} 66. Rd6+ {[%emt 0:00:35]} Ke7 {[%emt 0:01:26]} 67. d5 {[%emt 0:02:18]} exd5 {[%emt 0:00:22]} 68. Rxd5 {[%emt 0:00:09]} Ke6 {[%emt 0:00:33]} 69. Rd6+ {[%emt 0:00:52]} Ke7 {[%emt 0:00:03] [#]} 70. Kf5 $1 {[%emt 0:02:16]} Re2 $18 {[%emt 0:00:54]} (70... Rc1 $16 {is more resistant.} 71. Rd5 Rb1) 71. Rd5 {[%emt 0:01:00]} Re1 {[%emt 0:00:21] Ke4} 1/2-1/2

[Event "WYCC 2018 G16"]
[Site "Halkidiki"]
[Date "2018.10.21"]
[Round "2"]
[White "Duson, Robin"]
[Black "Hilario, Aleyla"]
[Result "0-1"]
[ECO "D17"]
[WhiteElo "1999"]
[BlackElo "2175"]
[Annotator "NA"]
[PlyCount "84"]
[EventDate "2018.10.20"]
[EventType "swiss"]
[EventCountry "GRE"]
[SourceTitle "playchess.com"]
[Source "ChessBase"]
[SourceQuality "1"]
[TimeControl "40/5400+30:1800+30"]

1. d4 {[%emt 0:00:00]} d5 {[%emt 0:00:09]} 2. c4 {[%emt 0:00:03]} c6 {[%emt 0:01:05]} 3. Nc3 {[%emt 0:00:47]} Nf6 {[%emt 0:12:26]} 4. Nf3 {[%emt 0:00:13]} dxc4 {[%emt 0:00:32]} 5. a4 {[%emt 0:00:31]} Bf5 {[%emt 0:00:29]} 6. Nh4 {[%emt 0:01:30]} Bg4 {[%emt 0:07:57]} 7. h3 {[%emt 0:03:22]} Bh5 {[%emt 0:01:25]} 8. g4 {[%emt 0:04:03]} Bg6 $1 {[%emt 0:00:04]} 9. e3 {[%emt 0:03:02] LiveBook: 3 Games} e6 {[%emt 0:23:39]} 10. Bxc4 {[%emt 0:07:36]} Bb4 {[%emt 0:01:47]} 11. Nxg6 {[%emt 0:10:04]} hxg6 {[%emt 0:00:09]} 12. Bd2 {[%emt 0:03:09]} Nbd7 {[%emt 0:03:26]} 13. Qe2 {[%emt 0:06:49]} Qe7 {[%emt 0:01:51]} 14. O-O-O {[%emt 0:07:05]} Nb6 {[%emt 0:02:33]} 15. Bb3 $11 {[%emt 0:02:12]} O-O-O 16. Bc2 {[%emt 0:09:58]} Nfd5 {[%emt 0:11:33]} 17. Nxd5 {[%emt 0:06:31]} exd5 {[%emt 0:00:38]} 18. Bxb4 {[%emt 0:04:05]} Qxb4 {[%emt 0:00:05]} 19. Qd2 {[%emt 0:00:38]} Qe7 {[%emt 0:04:51]} 20. Qe2 {[%emt 0:05:12]} Rh4 {[%emt 0:00:35]} 21. a5 {[%emt 0:02:07]} Nc4 {[%emt 0:00:43]} 22. a6 {[%emt 0:00:42]} b6 {[%emt 0:10:02]} 23. Bd3 {[%emt 0:01:54]} Qb4 {[%emt 0:00:08]} 24. Bxc4 {[%emt 0:01:05]} Qxc4+ {[%emt 0:00:21]} 25. Qxc4 {[%emt 0:00:37]} dxc4 {[%emt 0:00:02]} 26. Kc2 {[%emt 0:02:24]} Kc7 {[%emt 0:00:40]} 27. Kc3 {[%emt 0:01:38]} b5 {[%emt 0:00:43]} 28. e4 {[%emt 0:02:26]} Rdh8 {[%emt 0:01:34]} 29. d5 {[%emt 0:00:57]} Rxh3+ {[%emt 0:05:58]} 30. Rxh3 {[%emt 0:00:11]} Rxh3+ {[%emt 0:00:03]} 31. Kd4 {[%emt 0:01:02]} cxd5 {[%emt 0:00:05]} 32. Kc5 {[%emt 0:01:43]} dxe4 {[%emt 0:00:17]} 33. Rd4 {[%emt 0:03:20]} f5 {[%emt 0:02:31]} 34. Rd5 {[%emt 0:02:08]} fxg4 {[%emt 0:02:51]} 35. Kb4 {[%emt 0:02:51]} Rh5 {[%emt 0:00:05]} 36. Rd1 {[%emt 0:00:41]} g3 {[%emt 0:00:23]} 37. fxg3 {[%emt 0:00:35]} e3 {[%emt 0:00:05]} 38. Re1 {[%emt 0:00:30]} Re5 {[%emt 0:00:05]} 39. Kc3 {[%emt 0:00:18]} e2 {[%emt 0:00:06]} 40. Kd4 {[%emt 0:00:00]} Kd6 {[%emt 0:00:00]} 41. g4 {[%emt 0:01:24]} g5 {[%emt 0:00:24]} 42. Kc3 {[%emt 0:01:22]} Kc5 {[%emt 0:00:06] Kd4+} 0-1

[Event "WYCC 2018 G16"]
[Site "Halkidiki"]
[Date "2018.10.21"]
[Round "2"]
[White "Zhang, Xiao"]
[Black "Serikbay, Assel"]
[Result "1-0"]
[ECO "D15"]
[WhiteElo "1980"]
[BlackElo "2166"]
[Annotator "NA"]
[PlyCount "61"]
[EventDate "2018.10.20"]
[EventType "swiss"]
[EventCountry "GRE"]
[SourceTitle "playchess.com"]
[Source "ChessBase"]
[SourceQuality "1"]
[TimeControl "40/5400+30:1800+30"]

1. d4 {[%emt 0:00:00]} d5 {[%emt 0:00:00]} 2. c4 {[%emt 0:00:00]} c6 {[%emt 0:00:00]} 3. Nf3 {[%emt 0:00:00]} Nf6 {[%emt 0:00:00]} 4. Nc3 {[%emt 0:00:00]} a6 {[%emt 0:00:00] LiveBook: 8528 Games} 5. c5 {[%emt 0:00:22]} Nbd7 {[%emt 0:00:10]} 6. Bf4 {[%emt 0:00:12]} Nh5 {[%emt 0:00:20]} 7. Bd2 {[%emt 0:00:06]} g6 {[%emt 0:00:22]} 8. e4 {[%emt 0:00:31] D15: Slav Defence: 4 Nc3 a6 and gambit lines after 4 Nc3 dxc4} dxe4 {[%emt 0:00:22]} 9. Nxe4 {[%emt 0:00:05]} Bg7 {[%emt 0:00:22]} 10. Bc4 {[%emt 0:00:38]} O-O {[%emt 0:00:29]} 11. O-O {[%emt 0:00:19]} Ndf6 {[%emt 0:01:09]} 12. Nxf6+ {[%emt 0:01:10]} Bxf6 {[%emt 0:01:43]} 13. Bh6 {[%emt 0:01:46]} Bg7 {[%emt 0:01:00]} 14. Bxg7 {[%emt 0:03:47]} Nxg7 {[%emt 0:00:14]} 15. Qb3 {[%emt 0:01:58] [#]} Qc7 $146 {[%emt 0:13:45]} ({Predecessor:} 15... Be6 $11 {keeps the balance.} 16. Bxe6 Nxe6 17. Qxb7 Nxd4 18. Nxd4 Qxd4 19. Qxe7 Qxb2 {½-½ (40) Moranda,W (2452)-Jakovenko,D (2608) Warsaw 2005}) 16. Ng5 {[%emt 0:12:16]} e6 {[%emt 0:16:21]} 17. Rad1 {[%emt 0:10:10]} Rb8 {[%emt 0:06:19]} 18. Rfe1 $16 {[%emt 0:07:09]} b5 {[%emt 0:05:11]} 19. Bf1 {[%emt 0:03:57]} a5 {[%emt 0:04:21]} 20. Ne4 {[%emt 0:07:27]} Nf5 {[%emt 0:11:15]} 21. g4 {[%emt 0:04:39]} Ne7 {[%emt 0:01:14]} 22. Nd6 {[%emt 0:20:09]} Nd5 {[%emt 0:08:10]} 23. Bg2 {[%emt 0:01:30]} Qd8 {[%emt 0:11:00]} 24. Qg3 {[%emt 0:02:58]} Bd7 {[%emt 0:01:09]} 25. Bxd5 {[%emt 0:00:35]} exd5 {[%emt 0:03:31]} 26. Re5 {[%emt 0:00:26]} f6 {[%emt 0:06:15]} 27. Re3 {[%emt 0:01:17]} f5 {[%emt 0:02:17]} 28. gxf5 {[%emt 0:03:41]} Bxf5 {[%emt 0:01:06]} 29. Rde1 {[%emt 0:00:22]} Ra8 {[%emt 0:05:07]} 30. Re7 {[%emt 0:02:00]} Be4 {[%emt 0:01:10]} 31. Qe5 {[%emt 0:00:17]} 1-0